[Event "*** Titled Tuesday Blitz"]
[Site "Chess.com"]
[Date "2020.05.19"]
[Round "2"]
[White "Savagelittlemole"]
[Black "PauloCesarCosta_sad"]
[Result "1-0"]
[WhiteElo "2537"]
[BlackElo "2204"]
[TimeControl "180+1"]
[EndTime "12:20:21 PDT"]
[Termination "Savagelittlemole won on time"]

1. e4 {[%clk 0:03:00.9]} 1... e6 {[%clk 0:02:59.7]} 2. d4 {[%clk 0:02:59]} 2...
d5 {[%clk 0:03:00.1]} 3. Nd2 {[%clk 0:02:57.5]} 3... Nf6 {[%clk 0:02:59.4]} 4.
e5 {[%clk 0:02:57.1]} 4... Nfd7 {[%clk 0:02:59.8]} 5. Bd3 {[%clk 0:02:57.7]}
5... c5 {[%clk 0:03:00.3]} 6. c3 {[%clk 0:02:58.3]} 6... Nc6 {[%clk 0:03:00.8]}
7. Ne2 {[%clk 0:02:58.3]} 7... Qb6 {[%clk 0:03:01.2]} 8. Nf3 {[%clk 0:02:58]}
8... cxd4 {[%clk 0:03:01.7]} 9. cxd4 {[%clk 0:02:57.5]} 9... f6 {[%clk
0:03:01.9]} 10. exf6 {[%clk 0:02:56.8]} 10... Nxf6 {[%clk 0:03:00.4]} 11. O-O
{[%clk 0:02:57.5]} 11... Bd6 {[%clk 0:03:00.7]} 12. Bf4 {[%clk 0:02:57.4]} 12...
Bxf4 {[%clk 0:02:58.5]} 13. Nxf4 {[%clk 0:02:58.3]} 13... Qxb2 {[%clk 0:02:42]}
14. Re1 {[%clk 0:02:51.9]} 14... O-O {[%clk 0:02:33]} 15. Nxe6 {[%clk
0:02:47.9]} 15... Bxe6 {[%clk 0:02:32.7]} 16. Rxe6 {[%clk 0:02:48.8]} 16... Rae8
{[%clk 0:02:32.9]} 17. Rxe8 {[%clk 0:02:32.9]} 17... Rxe8 {[%clk 0:02:32.8]} 18.
Rb1 {[%clk 0:02:13.2]} 18... Qxa2 {[%clk 0:02:27.3]} 19. Rxb7 {[%clk 0:02:12.7]}
19... Ne4 {[%clk 0:02:23]} 20. Bxe4 {[%clk 0:01:58.2]} 20... dxe4 {[%clk
0:02:23]} 21. Ng5 {[%clk 0:01:58.1]} 21... h6 {[%clk 0:02:09.8]} 22. Nf7 {[%clk
0:01:53.8]} 22... Qd5 {[%clk 0:01:53.1]} 23. h3 {[%clk 0:01:38]} 23... Ne7
{[%clk 0:01:40.6]} 24. Nxh6+ {[%clk 0:01:28.6]} 24... gxh6 {[%clk 0:01:40.4]}
25. Rxa7 {[%clk 0:01:28.4]} 25... Kf8 {[%clk 0:01:26.5]} 26. Qg4 {[%clk
0:01:23]} 26... Qxd4 {[%clk 0:01:17.9]} 27. Qf4+ {[%clk 0:01:17.8]} 27... Kg7
{[%clk 0:01:07.7]} 28. Ra6 {[%clk 0:01:13.4]} 28... Ng8 {[%clk 0:00:58.4]} 29.
Qg4+ {[%clk 0:01:10.4]} 29... Kh8 {[%clk 0:00:53.5]} 30. Qg6 {[%clk 0:01:10.4]}
30... Rf8 {[%clk 0:00:46.8]} 31. Qg3 {[%clk 0:00:51.3]} 31... Qd5 {[%clk
0:00:34.3]} 32. Rg6 {[%clk 0:00:48.6]} 32... Qf7 {[%clk 0:00:28.4]} 33. Rc6
{[%clk 0:00:44.6]} 33... Qf5 {[%clk 0:00:21.8]} 34. Rc7 {[%clk 0:00:29.7]} 34...
Rf7 {[%clk 0:00:10.6]} 35. Rc6 {[%clk 0:00:27.3]} 35... Qf4 {[%clk 0:00:09.2]}
36. Qxf4 {[%clk 0:00:22.7]} 36... Rxf4 {[%clk 0:00:08.5]} 37. Kf1 {[%clk
0:00:23.1]} 37... Rf6 {[%clk 0:00:08]} 38. Rc7 {[%clk 0:00:20.5]} 38... Re6
{[%clk 0:00:04.2]} 39. Ke2 {[%clk 0:00:20.2]} 39... Nf6 {[%clk 0:00:04.5]} 40.
f3 {[%clk 0:00:18.1]} 40... exf3+ {[%clk 0:00:03.4]} 41. Kxf3 {[%clk 0:00:19]}
41... Re8 {[%clk 0:00:03.4]} 42. g4 {[%clk 0:00:16.7]} 42... Rf8 {[%clk
0:00:04.3]} 43. Kg3 {[%clk 0:00:15.7]} 43... Nd5 {[%clk 0:00:05.2]} 44. Rc6
{[%clk 0:00:13.1]} 44... Nc7 {[%clk 0:00:06.1]} 45. Rxc7 {[%clk 0:00:12.9]}
45... Rg8 {[%clk 0:00:05.3]} 46. Kh4 {[%clk 0:00:13.2]} 46... Rg5 {[%clk
0:00:03.6]} 47. Rd7 {[%clk 0:00:12.7]} 47... Kg8 {[%clk 0:00:03.3]} 48. Rd6
{[%clk 0:00:12.4]} 48... Kg7 {[%clk 0:00:03.2]} 49. Rd7+ {[%clk 0:00:12.8]}
49... Kg6 {[%clk 0:00:02.4]} 50. Rd8 {[%clk 0:00:13.3]} 50... Kg7 {[%clk
0:00:02.6]} 51. Rd4 {[%clk 0:00:13.3]} 51... Kg6 {[%clk 0:00:02.8]} 52. Rf4
{[%clk 0:00:13.9]} 52... Kg7 {[%clk 0:00:03.1]} 53. Rf5 {[%clk 0:00:14.4]} 53...
Kg6 {[%clk 0:00:01.2]} 54. Rxg5+ {[%clk 0:00:12.8]} 54... hxg5+ {[%clk
0:00:02.1]} 55. Kg3 {[%clk 0:00:13.2]} 55... Kf6 {[%clk 0:00:02.2]} 56. Kf3
{[%clk 0:00:13.7]} 56... Ke5 {[%clk 0:00:02.5]} 57. Ke3 {[%clk 0:00:14]} 57...
Kd5 {[%clk 0:00:02]} 58. Kd3 {[%clk 0:00:14.4]} 58... Ke5 {[%clk 0:00:02]} 59.
Ke3 {[%clk 0:00:14.9]} 59... Kd5 {[%clk 0:00:02.2]} 60. Kf3 {[%clk 0:00:15.1]}
60... Ke5 {[%clk 0:00:02.4]} 61. Kg3 {[%clk 0:00:14.6]} 61... Ke4 {[%clk
0:00:02.4]} 62. h4 {[%clk 0:00:14.9]} 62... gxh4+ {[%clk 0:00:02.6]} 63. Kxh4
{[%clk 0:00:15.8]} 63... Ke5 {[%clk 0:00:03.1]} 64. Kg5 {[%clk 0:00:16.2]} 64...
Ke6 {[%clk 0:00:03.3]} 65. Kg6 {[%clk 0:00:16.7]} 65... Ke7 {[%clk 0:00:03.1]}
66. Kg7 {[%clk 0:00:17.2]} 66... Ke8 {[%clk 0:00:03]} 67. g5 {[%clk 0:00:17.6]}
67... Ke7 {[%clk 0:00:03.4]} 68. g6 {[%clk 0:00:18]} 68... Ke6 {[%clk
0:00:03.2]} 69. Kh7 {[%clk 0:00:18.4]} 69... Kf6 {[%clk 0:00:04.1]} 70. g7
{[%clk 0:00:19.1]} 70... Kf5 {[%clk 0:00:04.6]} 71. g8=Q {[%clk 0:00:19.6]}
71... Kf6 {[%clk 0:00:05.5]} 72. Qg4 {[%clk 0:00:19]} 72... Ke5 {[%clk
0:00:04.9]} 73. Kg6 {[%clk 0:00:18.5]} 73... Kd6 {[%clk 0:00:05.8]} 74. Qf4+
{[%clk 0:00:18.5]} 74... Kc5 {[%clk 0:00:06.7]} 75. Qe4 {[%clk 0:00:18.4]} 75...
Kb6 {[%clk 0:00:07.6]} 76. Qd4+ {[%clk 0:00:18.7]} 76... Ka5 {[%clk 0:00:08.5]}
77. Qb2 {[%clk 0:00:17.9]} 77... Ka6 {[%clk 0:00:09.4]} 78. Kf6 {[%clk
0:00:18.3]} 78... Ka5 {[%clk 0:00:10.3]} 79. Ke6 {[%clk 0:00:18.7]} 79... Ka6
{[%clk 0:00:11.2]} 80. Kd6 {[%clk 0:00:19.2]} 80... Ka5 {[%clk 0:00:10.6]} 81.
Kc6 {[%clk 0:00:19.5]} 81... Ka4 {[%clk 0:00:11.5]} 82. Kc5 {[%clk 0:00:19.3]}
1-0

[Event "*** Titled Tuesday Blitz"]
[Site "Chess.com"]
[Date "2020.05.19"]
[Round "2"]
[White "rynos0411"]
[Black "NodariousBIG"]
[Result "1-0"]
[WhiteElo "2342"]
[BlackElo "2647"]
[TimeControl "180+1"]
[EndTime "12:20:23 PDT"]
[Termination "rynos0411 won by checkmate"]

1. d4 {[%clk 0:03:00.9]} 1... e6 {[%clk 0:03:00]} 2. Nf3 {[%clk 0:03:00.3]} 2...
f5 {[%clk 0:02:59]} 3. c4 {[%clk 0:02:56.7]} 3... b6 {[%clk 0:02:58.2]} 4. g3
{[%clk 0:02:53.6]} 4... Bb7 {[%clk 0:02:57.9]} 5. Bg2 {[%clk 0:02:53.3]} 5...
Nf6 {[%clk 0:02:58.5]} 6. Nc3 {[%clk 0:02:52]} 6... Bb4 {[%clk 0:02:57.8]} 7.
Bd2 {[%clk 0:02:51.7]} 7... Bxc3 {[%clk 0:02:57.3]} 8. Bxc3 {[%clk 0:02:51.7]}
8... Ne4 {[%clk 0:02:58]} 9. Qc2 {[%clk 0:02:50.9]} 9... Nxc3 {[%clk 0:02:58]}
10. Qxc3 {[%clk 0:02:50.9]} 10... Be4 {[%clk 0:02:58.2]} 11. d5 {[%clk
0:02:46.7]} 11... O-O {[%clk 0:02:56.6]} 12. dxe6 {[%clk 0:02:41.2]} 12... dxe6
{[%clk 0:02:55.9]} 13. O-O {[%clk 0:02:39.4]} 13... Nd7 {[%clk 0:02:47]} 14.
Rad1 {[%clk 0:02:38.3]} 14... Qe7 {[%clk 0:02:46.4]} 15. b4 {[%clk 0:02:35.1]}
15... a5 {[%clk 0:02:44.9]} 16. a3 {[%clk 0:02:35]} 16... axb4 {[%clk
0:02:44.7]} 17. axb4 {[%clk 0:02:35.9]} 17... Ra2 {[%clk 0:02:36.8]} 18. e3
{[%clk 0:02:26.7]} 18... Rc2 {[%clk 0:02:30.9]} 19. Qd4 {[%clk 0:02:25.4]} 19...
Nf6 {[%clk 0:02:25.4]} 20. Ne5 {[%clk 0:02:19.2]} 20... Bxg2 {[%clk 0:02:22.4]}
21. Kxg2 {[%clk 0:02:19]} 21... Qxb4 {[%clk 0:02:20.9]} 22. Qd3 {[%clk 0:01:42]}
22... Rc3 {[%clk 0:02:11.4]} 23. Qd4 {[%clk 0:01:41.2]} 23... Ne4 {[%clk
0:01:58]} 24. Nd7 {[%clk 0:01:30.5]} 24... Re8 {[%clk 0:01:52.6]} 25. Ne5 {[%clk
0:01:22.3]} 25... Nd6 {[%clk 0:01:49.6]} 26. Rb1 {[%clk 0:01:20.1]} 26... Rb3
{[%clk 0:01:31.9]} 27. Nd3 {[%clk 0:00:47.4]} 27... Qa4 {[%clk 0:01:02]} 28.
Rxb3 {[%clk 0:00:19.8]} 28... Qxb3 {[%clk 0:01:01.9]} 29. c5 {[%clk 0:00:19.9]}
29... bxc5 {[%clk 0:01:00.7]} 30. Nxc5 {[%clk 0:00:19.7]} 30... Qd5+ {[%clk
0:01:01.1]} 31. Qxd5 {[%clk 0:00:20.2]} 31... exd5 {[%clk 0:01:02]} 32. Rd1
{[%clk 0:00:20.5]} 32... c6 {[%clk 0:01:02.3]} 33. Ra1 {[%clk 0:00:20.2]} 33...
Ne4 {[%clk 0:01:00]} 34. Nd3 {[%clk 0:00:20.3]} 34... c5 {[%clk 0:00:57.9]} 35.
Nf4 {[%clk 0:00:20.5]} 35... d4 {[%clk 0:00:57.6]} 36. exd4 {[%clk 0:00:20.3]}
36... cxd4 {[%clk 0:00:58.5]} 37. Rd1 {[%clk 0:00:20.5]} 37... g5 {[%clk
0:00:56.4]} 38. Nd3 {[%clk 0:00:16.1]} 38... Nc3 {[%clk 0:00:54.6]} 39. Ra1
{[%clk 0:00:15.4]} 39... Kf7 {[%clk 0:00:52.6]} 40. Ra7+ {[%clk 0:00:15.1]}
40... Ke6 {[%clk 0:00:52.7]} 41. Rxh7 {[%clk 0:00:15]} 41... Kd5 {[%clk
0:00:53.1]} 42. Rg7 {[%clk 0:00:14.5]} 42... Kc4 {[%clk 0:00:52.6]} 43. Nc1
{[%clk 0:00:09.6]} 43... Kd5 {[%clk 0:00:36.3]} 44. Rd7+ {[%clk 0:00:07.8]}
44... Kc5 {[%clk 0:00:31.1]} 45. Nd3+ {[%clk 0:00:07.7]} 45... Kc4 {[%clk
0:00:31.7]} 46. Nb2+ {[%clk 0:00:08]} 46... Kb3 {[%clk 0:00:32]} 47. Nd3 {[%clk
0:00:08.3]} 47... Nb5 {[%clk 0:00:30.9]} 48. Nc5+ {[%clk 0:00:04.1]} 48... Kc4
{[%clk 0:00:30.8]} 49. Na4 {[%clk 0:00:04.5]} 49... Nc3 {[%clk 0:00:29.6]} 50.
Nb2+ {[%clk 0:00:04.3]} 50... Kb3 {[%clk 0:00:29.9]} 51. Nd3 {[%clk 0:00:03.6]}
51... Nb5 {[%clk 0:00:28.7]} 52. Nc5+ {[%clk 0:00:03]} 52... Kc2 {[%clk
0:00:27.8]} 53. h4 {[%clk 0:00:01.6]} 53... gxh4 {[%clk 0:00:27.5]} 54. gxh4
{[%clk 0:00:02.5]} 54... Rc8 {[%clk 0:00:27.8]} 55. Ne6 {[%clk 0:00:02.6]} 55...
d3 {[%clk 0:00:27.6]} 56. Nd4+ {[%clk 0:00:02.8]} 56... Nxd4 {[%clk 0:00:27.3]}
57. Rxd4 {[%clk 0:00:03.7]} 57... d2 {[%clk 0:00:28.2]} 58. Kf3 {[%clk
0:00:03.9]} 58... d1=Q+ {[%clk 0:00:28.7]} 59. Rxd1 {[%clk 0:00:04.5]} 59...
Kxd1 {[%clk 0:00:29.6]} 60. Kf4 {[%clk 0:00:05.3]} 60... Rc4+ {[%clk 0:00:29]}
61. Kxf5 {[%clk 0:00:05]} 61... Rxh4 {[%clk 0:00:29.5]} 62. f4 {[%clk
0:00:05.4]} 62... Ke2 {[%clk 0:00:29.9]} 63. Kg5 {[%clk 0:00:05.8]} 63... Rh1
{[%clk 0:00:24.5]} 64. f5 {[%clk 0:00:05.9]} 64... Ke3 {[%clk 0:00:25]} 65. f6
{[%clk 0:00:06]} 65... Ke4 {[%clk 0:00:23.1]} 66. f7 {[%clk 0:00:05.9]} 66...
Rf1 {[%clk 0:00:21.3]} 67. Kg6 {[%clk 0:00:05.7]} 67... Ke5 {[%clk 0:00:21.7]}
68. Kg7 {[%clk 0:00:06]} 68... Rg1+ {[%clk 0:00:21.7]} 69. Kh7 {[%clk
0:00:04.2]} 69... Rf1 {[%clk 0:00:21.2]} 70. Kg7 {[%clk 0:00:04.1]} 70... Rg1+
{[%clk 0:00:21.3]} 71. Kh7 {[%clk 0:00:04.5]} 71... Rh1+ {[%clk 0:00:19]} 72.
Kg7 {[%clk 0:00:04.5]} 72... Rf1 {[%clk 0:00:19.3]} 73. f8=Q {[%clk 0:00:04]}
73... Rg1+ {[%clk 0:00:19.2]} 74. Kh8 {[%clk 0:00:03.4]} 74... Rh1+ {[%clk
0:00:19.8]} 75. Kg7 {[%clk 0:00:03.4]} 75... Rg1+ {[%clk 0:00:20.5]} 76. Kf7
{[%clk 0:00:03.9]} 76... Rh1 {[%clk 0:00:21.2]} 77. Qe7+ {[%clk 0:00:03.7]}
77... Kf5 {[%clk 0:00:21.7]} 78. Qf6+ {[%clk 0:00:04.6]} 78... Kg4 {[%clk
0:00:22.3]} 79. Qe6+ {[%clk 0:00:04.4]} 79... Kg3 {[%clk 0:00:22.7]} 80. Qe5+
{[%clk 0:00:04.4]} 80... Kg2 {[%clk 0:00:23.2]} 81. Kf6 {[%clk 0:00:05]} 81...
Rf1+ {[%clk 0:00:23]} 82. Kg5 {[%clk 0:00:05]} 82... Rf2 {[%clk 0:00:23.5]} 83.
Qe4+ {[%clk 0:00:05.1]} 83... Kf1 {[%clk 0:00:23.9]} 84. Kg4 {[%clk 0:00:05.3]}
84... Rg2+ {[%clk 0:00:24.3]} 85. Kh3 {[%clk 0:00:03.9]} 85... Rd2 {[%clk
0:00:22.7]} 86. Kg3 {[%clk 0:00:03.5]} 86... Re2 {[%clk 0:00:22.2]} 87. Qh1#
{[%clk 0:00:02.7]} 1-0

[Event "*** Titled Tuesday Blitz"]
[Site "Chess.com"]
[Date "2020.05.19"]
[Round "2"]
[White "chenxiaoyuer"]
[Black "WildBizon"]
[Result "0-1"]
[WhiteElo "2283"]
[BlackElo "2614"]
[TimeControl "180+1"]
[EndTime "12:20:29 PDT"]
[Termination "WildBizon won on time"]

1. e4 {[%clk 0:03:00.9]} 1... c5 {[%clk 0:02:24.8]} 2. Nf3 {[%clk 0:03:00]} 2...
Nc6 {[%clk 0:02:24.7]} 3. d4 {[%clk 0:03:00]} 3... cxd4 {[%clk 0:02:24.9]} 4.
Nxd4 {[%clk 0:03:00.5]} 4... Nf6 {[%clk 0:02:25.4]} 5. Nc3 {[%clk 0:03:00.6]}
5... d6 {[%clk 0:02:25]} 6. Be2 {[%clk 0:02:58.3]} 6... e5 {[%clk 0:02:24.8]} 7.
Nf3 {[%clk 0:02:58]} 7... h6 {[%clk 0:02:24.7]} 8. O-O {[%clk 0:02:56.9]} 8...
Be7 {[%clk 0:02:24.7]} 9. h3 {[%clk 0:02:57.1]} 9... O-O {[%clk 0:02:24.7]} 10.
Re1 {[%clk 0:02:57.3]} 10... Be6 {[%clk 0:02:25]} 11. Bf1 {[%clk 0:02:56.8]}
11... Qd7 {[%clk 0:02:24.5]} 12. b3 {[%clk 0:02:55.6]} 12... Bd8 {[%clk
0:02:22.9]} 13. Bb2 {[%clk 0:02:54.1]} 13... Ba5 {[%clk 0:02:22.9]} 14. Re3
{[%clk 0:02:39.9]} 14... Rac8 {[%clk 0:02:21.1]} 15. Nd2 {[%clk 0:02:25.6]}
15... Bb6 {[%clk 0:02:17]} 16. Rf3 {[%clk 0:02:13.8]} 16... Nh5 {[%clk
0:01:58.6]} 17. Nc4 {[%clk 0:02:02.7]} 17... Nd4 {[%clk 0:01:40.5]} 18. Nxb6
{[%clk 0:01:42.7]} 18... axb6 {[%clk 0:01:38.7]} 19. Rd3 {[%clk 0:01:41.5]}
19... Nf4 {[%clk 0:01:37.9]} 20. Rxd4 {[%clk 0:01:40.4]} 20... exd4 {[%clk
0:01:36.9]} 21. Qxd4 {[%clk 0:01:40.6]} 21... f6 {[%clk 0:01:31.5]} 22. Rd1
{[%clk 0:01:28.5]} 22... Rfd8 {[%clk 0:01:24.7]} 23. Qxb6 {[%clk 0:01:26.7]}
23... Bf7 {[%clk 0:00:49]} 24. Qe3 {[%clk 0:01:15]} 24... Ng6 {[%clk 0:00:46.7]}
25. Qd2 {[%clk 0:01:10]} 25... Qc6 {[%clk 0:00:40.5]} 26. Bb5 {[%clk 0:00:45.9]}
26... Qc5 {[%clk 0:00:38.1]} 27. a4 {[%clk 0:00:40.3]} 27... Ne5 {[%clk
0:00:33.7]} 28. Qd4 {[%clk 0:00:36.9]} 28... Bh5 {[%clk 0:00:30.2]} 29. Qxc5
{[%clk 0:00:31.1]} 29... dxc5 {[%clk 0:00:30.1]} 30. Rxd8+ {[%clk 0:00:27.1]}
30... Rxd8 {[%clk 0:00:31]} 31. Nd5 {[%clk 0:00:27]} 31... Bd1 {[%clk
0:00:25.2]} 32. Ne3 {[%clk 0:00:24.2]} 32... Bxc2 {[%clk 0:00:20]} 33. Nxc2
{[%clk 0:00:17.8]} 33... Rd1+ {[%clk 0:00:19.9]} 34. Kh2 {[%clk 0:00:16.6]}
34... Rd2 {[%clk 0:00:20.2]} 35. Bxe5 {[%clk 0:00:16.4]} 35... fxe5 {[%clk
0:00:20.6]} 36. Ne3 {[%clk 0:00:16.2]} 36... Rxf2 {[%clk 0:00:20.8]} 37. Nc4
{[%clk 0:00:15.9]} 37... Re2 {[%clk 0:00:20.1]} 38. Nxe5 {[%clk 0:00:15.4]}
38... Rxe4 {[%clk 0:00:20.3]} 39. Nd7 {[%clk 0:00:15.1]} 39... Kf7 {[%clk
0:00:16.6]} 40. Nxc5 {[%clk 0:00:14.9]} 40... Re7 {[%clk 0:00:17.5]} 41. Bc4+
{[%clk 0:00:13]} 41... Kf6 {[%clk 0:00:17.3]} 42. b4 {[%clk 0:00:11.8]} 42...
Ke5 {[%clk 0:00:17.7]} 43. a5 {[%clk 0:00:09.9]} 43... Kd4 {[%clk 0:00:18.1]}
44. Be2 {[%clk 0:00:08.9]} 44... Rxe2 {[%clk 0:00:16.7]} 45. Nxb7 {[%clk
0:00:09]} 45... Kc4 {[%clk 0:00:17.2]} 46. Nd6+ {[%clk 0:00:07]} 46... Kxb4
{[%clk 0:00:17.3]} 47. Nf5 {[%clk 0:00:05.2]} 47... Kxa5 {[%clk 0:00:14.9]} 48.
Nxg7 {[%clk 0:00:05.4]} 48... Re5 {[%clk 0:00:15.2]} 49. g4 {[%clk 0:00:04.8]}
49... Kb6 {[%clk 0:00:15.5]} 50. Kg3 {[%clk 0:00:04.7]} 50... Kc7 {[%clk
0:00:15.6]} 51. Nf5 {[%clk 0:00:04.2]} 51... h5 {[%clk 0:00:15.1]} 52. Kf4
{[%clk 0:00:04.1]} 52... Ra5 {[%clk 0:00:15.3]} 53. gxh5 {[%clk 0:00:03.7]}
53... Kd7 {[%clk 0:00:16]} 54. h6 {[%clk 0:00:02.4]} 54... Ke6 {[%clk
0:00:15.8]} 55. Ng3 {[%clk 0:00:02.5]} 55... Kf6 {[%clk 0:00:15.7]} 56. h4
{[%clk 0:00:02]} 56... Kg6 {[%clk 0:00:14.7]} 57. Ne4 {[%clk 0:00:02.1]} 57...
Ra4 {[%clk 0:00:14.3]} 58. Ke3 {[%clk 0:00:02.1]} 58... Kxh6 {[%clk 0:00:14.5]}
59. Nf2 {[%clk 0:00:02.4]} 59... Kh5 {[%clk 0:00:14.7]} 60. Nd3 {[%clk
0:00:02.8]} 60... Kxh4 {[%clk 0:00:14.6]} 61. Nf2 {[%clk 0:00:03.1]} 61... Kg5
{[%clk 0:00:14.8]} 62. Ne4+ {[%clk 0:00:03]} 62... Kf5 {[%clk 0:00:15.7]} 63.
Nf2 {[%clk 0:00:03.1]} 63... Ke5 {[%clk 0:00:16.1]} 64. Nd3+ {[%clk 0:00:03]}
64... Kd6 {[%clk 0:00:17]} 65. Nf4 {[%clk 0:00:03.3]} 65... Ra3+ {[%clk
0:00:17.6]} 66. Ke4 {[%clk 0:00:02.3]} 66... Rb3 {[%clk 0:00:18.5]} 67. Nd3
{[%clk 0:00:01.8]} 67... Rc3 {[%clk 0:00:18.8]} 68. Nf4 {[%clk 0:00:02.1]} 68...
Rc4+ {[%clk 0:00:19.2]} 69. Ke3 {[%clk 0:00:02.2]} 69... Ke5 {[%clk 0:00:19.7]}
70. Nd3+ {[%clk 0:00:02.6]} 70... Kf5 {[%clk 0:00:20.2]} 71. Kf3 {[%clk
0:00:02.9]} 71... Rd4 {[%clk 0:00:19.7]} 72. Ke3 {[%clk 0:00:03.2]} 72... Re4+
{[%clk 0:00:20.2]} 73. Kf3 {[%clk 0:00:03.6]} 73... Re8 {[%clk 0:00:21.1]} 74.
Nf2 {[%clk 0:00:03.5]} 74... Rd8 {[%clk 0:00:21.4]} 75. Ke3 {[%clk 0:00:03.7]}
75... Ra8 {[%clk 0:00:20.5]} 76. Kf3 {[%clk 0:00:03.5]} 76... Ra3+ {[%clk
0:00:20.8]} 77. Ke2 {[%clk 0:00:03.9]} 77... Kf4 {[%clk 0:00:21.2]} 78. Nd3+
{[%clk 0:00:04.3]} 78... Ke4 {[%clk 0:00:21.8]} 79. Nf2+ {[%clk 0:00:04.7]}
79... Kd4 {[%clk 0:00:22.7]} 80. Kd2 {[%clk 0:00:04.9]} 80... Ra2+ {[%clk
0:00:23]} 81. Ke1 {[%clk 0:00:05]} 81... Ke3 {[%clk 0:00:23.6]} 82. Nd1+ {[%clk
0:00:04.9]} 82... Kf3 {[%clk 0:00:24.1]} 83. Kf1 {[%clk 0:00:05.3]} 83... Re2
{[%clk 0:00:22.2]} 84. Nc3 {[%clk 0:00:04.3]} 84... Rd2 {[%clk 0:00:21.7]} 85.
Ke1 {[%clk 0:00:04.2]} 85... Rd3 {[%clk 0:00:22.1]} 86. Nd1 {[%clk 0:00:03.9]}
86... Rd8 {[%clk 0:00:23]} 87. Nb2 {[%clk 0:00:03.6]} 87... Rh8 {[%clk
0:00:23.3]} 88. Kd2 {[%clk 0:00:03.3]} 88... Rd8+ {[%clk 0:00:23.8]} 89. Kc2
{[%clk 0:00:03.2]} 89... Ke3 {[%clk 0:00:24.7]} 90. Nc4+ {[%clk 0:00:03]} 90...
Kd4 {[%clk 0:00:25.1]} 91. Nd2 {[%clk 0:00:02.9]} 91... Rc8+ {[%clk 0:00:26]}
92. Kb2 {[%clk 0:00:02.5]} 92... Kd3 {[%clk 0:00:26.9]} 93. Nb1 {[%clk
0:00:01.3]} 93... Rb8+ {[%clk 0:00:27.8]} 94. Kc1 {[%clk 0:00:01.6]} 94... Rb3
{[%clk 0:00:27.1]} 0-1